[Event "44th Chess Olympiad Open 2022"]
[Site "Chennai"]
[Date "2022.08.03"]
[Round "6.61"]
[White "De Gondo, Simplice Armel"]
[Black "Othman, A. Moussa"]
[Result "1/2-1/2"]
[WhiteElo "2135"]
[BlackElo "2229"]
[Annotator "TA"]
[PlyCount "104"]
[EventDate "2022.??.??"]
[TimeControl "60"]

{[%evp 10,104,43,24,42,34,23,32,47,0,0,0,0,-2,11,0,0,0,0,0,0,0,10,10,9,6,10,-8,
10,13,10,10,10,9,9,9,18,18,18,12,18,8,20,2,2,2,2,2,2,3,3,0,0,3,38,31,38,0,6,18,
14,0,38,38,38,38,38,38,38,0,0,0,0,0,0,0,0,0,0,0,0,0,0,0,39,0,0,0,0,0,0,0,0,0,0,
0,0]} 1. e4 {[%emt 0:00:02]} d6 {[%emt 0:00:08]} 2. d4 {[%emt 0:00:02]} g6 {
[%emt 0:00:05]} 3. Nc3 {[%emt 0:00:11]} Bg7 {[%emt 0:00:04]} 4. Be3 {[%emt 0:
00:00]} c6 {[%emt 0:00:05]} 5. a4 {[%emt 0:00:04]} Nf6 {[%emt 0:01:18]} 6. f3 {
[%emt 0:00:56]} Nbd7 {[%emt 0:01:08] B07: Pirc Defence: Miscellaneous Systems.}
7. Nge2 {[%emt 0:01:36]} O-O {[%emt 0:00:48]} 8. Qd2 {[%emt 0:11:43]} e5 {
[%emt 0:01:49] White is slightly better.} 9. dxe5 {[%emt 0:00:02]} (9. O-O-O
$14 {might be stronger.}) 9... Nxe5 $11 {[%emt 0:00:36] [#] Threatens to win
with ...Nc4.} 10. Ng3 {[%emt 0:02:42] [#]} d5 $146 {[%emt 0:03:20]} ({
Predecessor:} 10... Be6 11. Be2 Nc4 12. Bxc4 Bxc4 13. Bh6 Be6 14. Bxg7 Kxg7 15.
O-O-O {½-½ (15) Jimenez Zerquera,E-Padevsky,N Harrachov 1966}) 11. Be2 {
[%emt 0:06:55]} dxe4 {[%emt 0:01:41]} (11... Qc7 {seems wilder.} 12. exd5 Nxd5
13. Nxd5 cxd5 14. c3 b6) 12. Qxd8 {[%emt 0:00:34]} Rxd8 {[%emt 0:00:10]} 13.
Ngxe4 {[%emt 0:00:14]} Nxe4 {[%emt 0:00:32]} 14. Nxe4 {[%emt 0:00:05]} Bf5 {
[%emt 0:05:19]} 15. Kf2 {[%emt 0:03:46]} Ng4+ {[%emt 0:01:12]} 16. fxg4 {
[%emt 0:00:37]} Bxe4 {[%emt 0:00:01]} 17. c3 {[%emt 0:00:11]} Re8 {[%emt 0:00:
00][%cal Ye4g2]} 18. Rhd1 {[%emt 0:00:04]} Bd5 {[%emt 0:08:07]} 19. Bf3 {
[%emt 0:00:23]} Be6 {[%emt 0:01:48]} 20. a5 {[%emt 0:00:13]} a6 $1 {[%emt 0:00:
00]} 21. Bb6 {[%emt 0:02:28]} Re7 {[%emt 0:09:57]} 22. Re1 {[%emt 0:04:00]} Bf6
{[%emt 0:05:38]} 23. Rad1 {[%emt 0:01:15]} Ree8 {[%emt 0:00:25] Prevents Bd8.}
24. Rd3 {[%emt 0:03:11]} h6 {[%emt 0:11:27]} 25. g3 {[%emt 0:04:02]} g5 {
[%emt 0:01:49]} 26. Re2 {[%emt 0:06:06]} Bd8 {[%emt 0:03:09]} 27. Bxd8 {
[%emt 0:00:36]} Raxd8 {[%emt 0:00:26]} 28. Red2 {[%emt 0:00:07]} Rxd3 {[%emt 0:
00:00]} 29. Rxd3 {[%emt 0:00:03] Endgame KRB-KRB} Kf8 {[%emt 0:00:00]} 30. b4 {
[%emt 0:00:35]} Ke7 {[%emt 0:03:39]} 31. Ke3 {[%emt 0:03:37]} Bc4 {[%emt 0:00:
45]} 32. Rd4 {[%emt 0:00:16]} Kf6+ {[%emt 0:00:54]} 33. Re4 {[%emt 0:10:57]} (
33. Kd2 $5 {[%cal Rd4c4]} Be6 34. c4 $11) 33... Be6 {[%emt 0:00:00]} 34. c4 {
[%emt 0:04:44]} Rd8 {[%emt 0:02:56]} 35. Rd4 {[%emt 0:03:36]} Re8 {[%emt 0:00:
19]} 36. Kd3 {[%emt 0:00:05]} Ke5 {[%emt 0:00:38]} 37. Re4+ {[%emt 0:13:49]}
Kd6 {[%emt 0:01:22]} 38. Kd4 {[%emt 0:00:04]} Rd8 {[%emt 0:00:00][%cal Yc6c5]}
39. Be2 {[%emt 0:02:27]} c5+ {[%emt 0:06:09]} 40. bxc5+ {[%emt 0:00:49]} Kc6+ {
[%emt 0:00:04]} 41. Kc3 {[%emt 0:30:01] aiming for Re5.} Kxc5 {[%emt 0:31:07]}
42. Bf3 {[%emt 0:00:43]} b6 {[%emt 0:09:21]} 43. axb6 {[%emt 0:04:24]} Kxb6 {
[%emt 0:00:02]} 44. Re5 {[%emt 0:00:06]} Rc8 {[%emt 0:00:00]} 45. Bd5 {[%emt 0:
01:46]} Rc5 {[%emt 0:00:00]} 46. Kd4 {[%emt 0:00:00]} Bxd5 {[%emt 0:00:00]} 47.
cxd5 {[%emt 0:00:00] KR-KR} Rc2 {[%emt 0:00:00] The position is equal.} 48. Rf5
{[%emt 0:00:00]} Rd2+ {[%emt 0:00:00]} 49. Kc4 {[%emt 0:00:00] Black must now
prevent Rf6+.} Rc2+ {[%emt 0:00:00]} 50. Kd4 {[%emt 0:00:00] And now Rf6+
would win.} Rd2+ {[%emt 0:00:00]} 51. Kc4 {[%emt 0:00:00] Hoping for Rf6+.}
Rc2+ {[%emt 0:00:08]} 52. Kd4 {[%emt 0:00:00]} Rd2+ {[%emt 0:00:02] Weighted
Error Value: White=0.06 (flawless) /Black=0.05 (flawless)} 1/2-1/2

[Event "44th Chess Olympiad Open 2022"]
[Site "Chennai"]
[Date "2022.08.03"]
[Round "6.61"]
[White "Sultan, Ibrahim"]
[Black "Manan, Yoboue Hermann"]
[Result "1-0"]
[WhiteElo "2108"]
[BlackElo "2066"]
[Annotator "NA RC"]
[PlyCount "83"]
[EventDate "2022.??.??"]
[TimeControl "60"]

1. d4 {[%emt 0:00:04]} d5 {[%emt 0:00:25]} 2. c4 {[%emt 0:00:06]} e6 {[%emt 0:
00:00]} 3. Nc3 {[%emt 0:00:04]} Nf6 {[%emt 0:00:21]} 4. cxd5 {[%emt 0:00:05]}
exd5 {[%emt 0:00:44]} 5. Bg5 {[%emt 0:00:03]} c6 {[%emt 0:00:36]} 6. e3 {
[%emt 0:00:12]} h6 {[%emt 0:00:50]} 7. Bh4 {[%emt 0:00:45]} Be7 {[%emt 0:00:13]
} 8. Bd3 {[%emt 0:00:18]} O-O {[%emt 0:00:22]} 9. Qc2 {[%emt 0:00:07]} Re8 {
[%emt 0:00:45]} 10. Nge2 {[%emt 0:00:21]} Nbd7 {[%emt 0:03:34]} 11. O-O {
[%emt 0:00:10]} Ne4 {[%emt 0:01:45]} 12. Bxe7 {[%emt 0:00:33]} Qxe7 {[%emt 0:
00:00]} 13. Rae1 {[%emt 0:02:57]} Ndf6 {[%emt 0:03:10]} 14. f3 {[%emt 0:03:24]}
Nxc3 {[%emt 0:00:28]} 15. Nxc3 {[%emt 0:00:03]} Qd6 {[%emt 0:01:39]} 16. Qf2 {
[%emt 0:02:30]} c5 {[%emt 0:08:17]} 17. Nb5 {[%emt 0:01:12]} Qb6 {[%emt 0:00:
00]} 18. dxc5 {[%emt 0:02:01]} Qxc5 {[%emt 0:00:20]} 19. Rc1 {[%emt 0:01:23]}
Qxe3 {[%emt 0:01:20]} 20. Nc7 {[%emt 0:00:20]} Qxd3 {[%emt 0:07:13]} 21. Nxa8 {
[%emt 0:00:22]} Bd7 {[%emt 0:07:00]} 22. Qxa7 {[%emt 0:14:58]} Re2 {[%emt 0:00:
00]} 23. Rf2 {[%emt 0:33:36]} Qd2 {[%emt 0:00:48]} 24. Rcf1 {[%emt 0:03:17]}
Bb5 {[%emt 0:14:27]} 25. Nc7 {[%emt 0:01:04]} Bd3 {[%emt 0:05:12]} 26. Qd4 {
[%emt 0:04:17]} Re1 {[%emt 0:02:19]} 27. h4 {[%emt 0:04:37]} Qd1 {[%emt 0:00:
00]} 28. Rxe1 {[%emt 0:00:09]} Qxe1+ {[%emt 0:00:10]} 29. Kh2 {[%emt 0:00:02]}
Qe7 {[%emt 0:09:53]} 30. Nxd5 {[%emt 0:09:45]} Nxd5 {[%emt 0:02:52]} 31. Qxd3 {
[%emt 0:01:11]} Qxh4+ {[%emt 0:00:32]} 32. Kg1 {[%emt 0:00:07]} Nf4 {[%emt 0:
00:00]} 33. Qd7 {[%emt 0:00:27]} Qg5 {[%emt 0:01:40]} 34. Qg4 {[%emt 0:02:04]}
Qe5 {[%emt 0:04:33]} 35. Qc8+ {[%emt 0:01:15]} Kh7 {[%emt 0:00:14]} 36. Qc2+ {
[%emt 0:00:10]} f5 {[%emt 0:03:40]} 37. Qd2 {[%emt 0:00:44]} g5 {[%emt 0:01:43]
} 38. Rf1 {[%emt 0:04:23]} Ne2+ {[%emt 0:02:10]} 39. Kf2 {[%emt 0:00:05]} Nf4 {
[%emt 0:03:05]} 40. Rd1 {[%emt 0:03:18]} Qc5+ {[%emt 0:01:01]} 41. Qd4 {
[%emt 0:30:06]} Qc2+ {[%emt 0:30:46]} 42. Rd2 {[%emt 0:00:04]} 1-0

[Event "44th Chess Olympiad Open 2022"]
[Site "Chennai"]
[Date "2022.08.03"]
[Round "6.61"]
[White "Amako Marc Arnold"]
[Black "Mohamed Saeed Laily"]
[Result "0-1"]
[WhiteElo "1547"]
[BlackElo "2030"]
[Annotator "NA RC"]
[PlyCount "92"]
[EventDate "2022.??.??"]
[TimeControl "60"]

1. e4 {[%emt 0:00:09]} c6 {[%emt 0:00:03]} 2. d4 {[%emt 0:00:57]} d5 {[%emt 0:
00:00]} 3. e5 {[%emt 0:00:06]} Bf5 {[%emt 0:00:04]} 4. h4 {[%emt 0:00:26]} c5 {
[%emt 0:04:08]} 5. dxc5 {[%emt 0:02:01]} Nc6 {[%emt 0:00:44]} 6. Bb5 {[%emt 0:
00:00]} Qc7 {[%emt 0:01:53]} 7. Bf4 {[%emt 0:07:18]} Rd8 {[%emt 0:08:43]} 8. b4
{[%emt 0:16:40]} h5 {[%emt 0:07:33]} 9. Ne2 {[%emt 0:00:22]} e6 {[%emt 0:02:02]
} 10. Nd4 {[%emt 0:00:55]} Nge7 {[%emt 0:10:41]} 11. Nd2 {[%emt 0:03:02]} Ng6 {
[%emt 0:12:45]} 12. Bxc6+ {[%emt 0:00:13]} bxc6 {[%emt 0:00:16]} 13. Nxf5 {
[%emt 0:00:04]} exf5 {[%emt 0:00:53]} 14. Qf3 {[%emt 0:01:22]} Be7 {[%emt 0:00:
00]} 15. Bg3 {[%emt 0:02:21]} f4 {[%emt 0:01:35]} 16. Bxf4 {[%emt 0:06:18]}
Nxh4 {[%emt 0:00:18]} 17. Qg3 {[%emt 0:02:14]} Nf5 {[%emt 0:01:56]} 18. Qd3 {
[%emt 0:01:40]} Qd7 {[%emt 0:03:17]} 19. Nf3 {[%emt 0:00:32]} g6 {[%emt 0:00:
00]} 20. g4 {[%emt 0:00:45]} Ng7 {[%emt 0:00:13]} 21. gxh5 {[%emt 0:01:38]}
Nxh5 {[%emt 0:00:01]} 22. O-O-O {[%emt 0:01:11]} a5 {[%emt 0:04:08]} 23. c3 {
[%emt 0:00:20]} axb4 {[%emt 0:00:40]} 24. cxb4 {[%emt 0:00:09]} Qa7 {[%emt 0:
00:00]} 25. a3 {[%emt 0:02:08]} Ra8 {[%emt 0:02:08]} 26. e6 {[%emt 0:00:34]}
Qxa3+ {[%emt 0:01:32]} 27. Qxa3 {[%emt 0:00:12]} Rxa3 {[%emt 0:00:02]} 28.
exf7+ {[%emt 0:00:31]} Kxf7 {[%emt 0:00:50]} 29. Ne5+ {[%emt 0:00:26]} Kf6 {
[%emt 0:00:57]} 30. Nxc6 {[%emt 0:01:17]} Rha8 {[%emt 0:01:25]} 31. Be5+ {
[%emt 0:00:22]} Kf7 {[%emt 0:01:58]} 32. Bb2 {[%emt 0:00:17]} Bg5+ {[%emt 0:00:
00]} 33. Kc2 {[%emt 0:00:43]} Ra2 {[%emt 0:00:53]} 34. Kb3 {[%emt 0:01:38]} Bf6
{[%emt 0:01:03]} 35. Nd4 {[%emt 0:00:55]} Nf4 {[%emt 0:00:46]} 36. Ra1 {
[%emt 0:00:15]} Rxb2+ {[%emt 0:00:14]} 37. Kxb2 {[%emt 0:07:58]} Bxd4+ {
[%emt 0:00:02]} 38. Kc2 {[%emt 0:01:04]} Rxa1 {[%emt 0:00:34]} 39. Rh7+ {
[%emt 0:00:11]} Bg7 {[%emt 0:01:06]} 40. c6 {[%emt 0:08:09]} Ne6 {[%emt 0:00:
00]} 41. Kb3 {[%emt 0:33:37]} Nd4+ {[%emt 0:31:11]} 42. Kb2 {[%emt 0:02:02]}
Nxc6+ {[%emt 0:00:12]} 43. Rxg7+ {[%emt 0:01:46]} Kxg7 {[%emt 0:00:09]} 44.
Kxa1 {[%emt 0:00:59]} Nxb4 {[%emt 0:00:07]} 45. Kb2 {[%emt 0:00:11]} Nc6 {
[%emt 0:00:03]} 46. Kc3 {[%emt 0:00:17]} Kf6 {[%emt 0:00:04]} 0-1

[Event "44th Chess Olympiad Open 2022"]
[Site "Chennai"]
[Date "2022.08.03"]
[Round "6.62"]
[White "Lama, Milan"]
[Black "Daniel Kolliemelen"]
[Result "1-0"]
[WhiteElo "2024"]
[BlackElo "1870"]
[Annotator "NA RC"]
[PlyCount "143"]
[EventDate "2022.??.??"]
[TimeControl "60"]

1. e4 {[%emt 0:00:04]} e6 {[%emt 0:00:36]} 2. d4 {[%emt 0:00:18]} d5 {[%emt 0:
00:00]} 3. exd5 {[%emt 0:00:11]} exd5 {[%emt 0:00:17]} 4. c4 {[%emt 0:00:35]}
c6 {[%emt 0:03:24]} 5. Nc3 {[%emt 0:00:25]} Bb4 {[%emt 0:02:19]} 6. Qb3 {
[%emt 0:01:52]} Ba5 {[%emt 0:03:15]} 7. Nf3 {[%emt 0:01:01]} Ne7 {[%emt 0:00:
00]} 8. Bd3 {[%emt 0:03:29]} O-O {[%emt 0:02:23]} 9. O-O {[%emt 0:01:20]} dxc4
{[%emt 0:09:41]} 10. Bxc4 {[%emt 0:00:04]} b5 {[%emt 0:00:48]} 11. Bd3 {
[%emt 0:03:03]} Bf5 {[%emt 0:01:29]} 12. Bxf5 {[%emt 0:04:37]} Nxf5 {[%emt 0:
00:00]} 13. Rd1 {[%emt 0:00:13]} Bxc3 {[%emt 0:02:18]} 14. Qxc3 {[%emt 0:03:38]
} Ne7 {[%emt 0:01:56]} 15. Bg5 {[%emt 0:13:11]} f6 {[%emt 0:01:57]} 16. Bh4 {
[%emt 0:00:33]} Nd7 {[%emt 0:02:05]} 17. a4 {[%emt 0:10:11]} a6 {[%emt 0:02:55]
} 18. Bg3 {[%emt 0:12:20]} Nb6 {[%emt 0:01:44]} 19. axb5 {[%emt 0:03:56]} axb5
{[%emt 0:01:15]} 20. Rxa8 {[%emt 0:06:54]} Qxa8 {[%emt 0:01:21]} 21. Bd6 {
[%emt 0:04:39]} Ned5 {[%emt 0:07:10]} 22. Qc2 {[%emt 0:02:32]} Re8 {[%emt 0:00:
00]} 23. Bc5 {[%emt 0:01:44]} g6 {[%emt 0:04:26]} 24. Bxb6 {[%emt 0:02:58]}
Nxb6 {[%emt 0:03:19]} 25. Rc1 {[%emt 0:01:27]} Re6 {[%emt 0:09:31]} 26. d5 {
[%emt 0:03:33]} cxd5 {[%emt 0:03:38]} 27. Nd4 {[%emt 0:00:51]} Re4 {[%emt 0:00:
00]} 28. Nxb5 {[%emt 0:09:50]} Qe8 {[%emt 0:00:32]} 29. Qd3 {[%emt 0:02:12]}
Re1+ {[%emt 0:00:40]} 30. Rxe1 {[%emt 0:00:30]} Qxe1+ {[%emt 0:03:10]} 31. Qf1
{[%emt 0:00:04]} Qd2 {[%emt 0:03:13]} 32. Qa1 {[%emt 0:02:38]} d4 {[%emt 0:00:
00]} 33. h3 {[%emt 0:01:36]} Nc8 {[%emt 0:04:27]} 34. Qa2+ {[%emt 0:00:45]} Kg7
{[%emt 0:03:26]} 35. Qc4 {[%emt 0:01:05]} Qe1+ {[%emt 0:05:02]} 36. Kh2 {
[%emt 0:00:26]} Qxf2 {[%emt 0:02:04]} 37. Qxd4 {[%emt 0:01:05]} Qxd4 {[%emt 0:
00:00]} 38. Nxd4 {[%emt 0:00:03]} Kf7 {[%emt 0:00:48]} 39. Kg3 {[%emt 0:00:10]}
Ke7 {[%emt 0:00:06]} 40. Kf4 {[%emt 0:00:16]} Kd6 {[%emt 0:00:57]} 41. Ke4 {
[%emt 0:30:13]} Nb6 {[%emt 0:31:24]} 42. Nb5+ {[%emt 0:02:35]} Kc6 {[%emt 0:00:
00]} 43. Nd4+ {[%emt 0:00:58]} Kd6 {[%emt 0:00:28]} 44. b3 {[%emt 0:01:51]} Nd7
{[%emt 0:02:22]} 45. b4 {[%emt 0:00:00]} Nb6 {[%emt 0:00:00]} 46. Nb5+ {
[%emt 0:00:00]} Kc6 {[%emt 0:00:00]} 47. Nc3 {[%emt 0:00:00]} Kd6 {[%emt 0:00:
00]} 48. Kd4 {[%emt 0:00:00]} f5 {[%emt 0:00:00]} 49. Nb5+ {[%emt 0:00:00]} Ke6
{[%emt 0:00:00]} 50. Nc7+ {[%emt 0:00:00]} Kd6 {[%emt 0:00:00]} 51. Nb5+ {
[%emt 0:00:00]} Ke6 {[%emt 0:00:00]} 52. Na3 {[%emt 0:00:00]} g5 {[%emt 0:00:
00]} 53. Nc4 {[%emt 0:00:00]} Nd7 {[%emt 0:00:00]} 54. b5 {[%emt 0:00:00]} h5 {
[%emt 0:00:00]} 55. b6 {[%emt 0:00:00]} h4 {[%emt 0:00:00]} 56. b7 {[%emt 0:00:
00]} f4 {[%emt 0:00:00]} 57. Nb6 {[%emt 0:00:00]} Nb8 {[%emt 0:00:00]} 58. Ke4
{[%emt 0:00:00]} Nc6 {[%emt 0:00:00]} 59. Nd5 {[%emt 0:00:00]} Nb8 {[%emt 0:00:
00]} 60. Nb6 {[%emt 0:00:00]} Na6 {[%emt 0:00:00]} 61. Na4 {[%emt 0:00:29]} Kf6
{[%emt 0:00:00]} 62. Kd5 {[%emt 0:00:35]} Kf5 {[%emt 0:00:00]} 63. Nc5 {
[%emt 0:01:25]} Nb8 {[%emt 0:00:00]} 64. Kd6 {[%emt 0:02:05]} g4 {[%emt 0:00:
00]} 65. hxg4+ {[%emt 0:02:13]} Kxg4 {[%emt 0:01:34]} 66. Kc7 {[%emt 0:00:04]}
f3 {[%emt 0:00:33]} 67. gxf3+ {[%emt 0:00:22]} Kxf3 {[%emt 0:00:13]} 68. Kxb8 {
[%emt 0:00:07]} h3 {[%emt 0:02:03]} 69. Ka7 {[%emt 0:00:55]} h2 {[%emt 0:02:05]
} 70. b8=Q {[%emt 0:00:19]} Kg2 {[%emt 0:00:28]} 71. Qb2+ {[%emt 0:00:29]} Kg1
{[%emt 0:02:10]} 72. Ne4 {[%emt 0:00:09]} 1-0

[Event "44th Chess Olympiad Open 2022"]
[Site "Chennai"]
[Date "2022.08.03"]
[Round "6.62"]
[White "Chaulagain, Purushottam"]
[Black "Barcon, Harmon"]
[Result "*"]
[WhiteElo "1975"]
[BlackElo "1902"]
[Annotator "NA RC"]
[PlyCount "91"]
[EventDate "2022.??.??"]
[TimeControl "60"]

1. d4 {[%emt 0:00:05]} Nf6 {[%emt 0:00:07]} 2. Bf4 {[%emt 0:00:24]} e6 {
[%emt 0:00:10]} 3. e3 {[%emt 0:00:07]} d5 {[%emt 0:00:31]} 4. Nd2 {[%emt 0:00:
00]} c5 {[%emt 0:01:09]} 5. c3 {[%emt 0:00:05]} Nc6 {[%emt 0:00:06]} 6. Ngf3 {
[%emt 0:00:12]} Bd6 {[%emt 0:01:04]} 7. Bg3 {[%emt 0:00:34]} a6 {[%emt 0:00:33]
} 8. Ne5 {[%emt 0:00:53]} Qc7 {[%emt 0:03:39]} 9. Nxc6 {[%emt 0:04:44]} Qxc6 {
[%emt 0:00:31]} 10. Bd3 {[%emt 0:03:21]} Bd7 {[%emt 0:02:00]} 11. Nf3 {[%emt 0:
00:00]} c4 {[%emt 0:03:11]} 12. Bc2 {[%emt 0:00:17]} Bxg3 {[%emt 0:00:48]} 13.
hxg3 {[%emt 0:00:07]} Qb6 {[%emt 0:00:30]} 14. Qb1 {[%emt 0:00:27]} h6 {
[%emt 0:00:34]} 15. Ne5 {[%emt 0:01:00]} Qa5 {[%emt 0:05:26]} 16. g4 {[%emt 0:
00:00]} Ke7 {[%emt 0:00:08]} 17. f4 {[%emt 0:10:14]} Ba4 {[%emt 0:00:56]} 18.
f5 {[%emt 0:05:09]} Bxc2 {[%emt 0:01:25]} 19. Qxc2 {[%emt 0:00:05]} Ne4 {
[%emt 0:02:02]} 20. fxe6 {[%emt 0:01:17]} Kxe6 {[%emt 0:00:25]} 21. Nxc4 {
[%emt 0:02:17]} Qc7 {[%emt 0:00:21]} 22. Ne5 {[%emt 0:01:15]} f6 {[%emt 0:00:
00]} 23. Nd3 {[%emt 0:13:09]} Qg3+ {[%emt 0:00:45]} 24. Kf1 {[%emt 0:00:25]}
Qxg4 {[%emt 0:07:09]} 25. Nf4+ {[%emt 0:01:14]} Kf7 {[%emt 0:00:44]} 26. Rh3 {
[%emt 0:02:50]} g5 {[%emt 0:18:56]} 27. Nd3 {[%emt 0:04:05]} Rae8 {[%emt 0:00:
00]} 28. Rf3 {[%emt 0:01:51]} Qh4 {[%emt 0:01:40]} 29. Rh3 {[%emt 0:06:26]} Qg4
{[%emt 0:00:31]} 30. Rf3 {[%emt 0:00:40]} Qh4 {[%emt 0:06:34]} 31. Rh3 {
[%emt 0:00:50]} Qg4 {[%emt 0:00:57]} 32. Rf3 {[%emt 0:00:05]} Qh5 {[%emt 0:00:
00]} 33. Rh3 {[%emt 0:06:49]} Qg6 {[%emt 0:00:13]} 34. Kg1 {[%emt 0:04:30]} g4
{[%emt 0:00:46]} 35. Nf4 {[%emt 0:00:14]} Qg7 {[%emt 0:05:53]} 36. Rh5 {
[%emt 0:00:42]} g3 {[%emt 0:09:55]} 37. Qb3 {[%emt 0:02:57]} Kf8 {[%emt 0:00:
00]} 38. Qxd5 {[%emt 0:02:32]} Ng5 {[%emt 0:00:13]} 39. Re1 {[%emt 0:01:30]}
Qf7 {[%emt 0:00:40]} 40. Qf5 {[%emt 0:03:04]} Kg7 {[%emt 0:01:20]} 41. e4 {
[%emt 0:01:12]} Re7 {[%emt 0:33:06]} 42. Rh4 {[%emt 0:03:10]} Rf8 {[%emt 0:00:
00]} 43. Nh5+ {[%emt 0:00:25]} Kg8 {[%emt 0:00:29]} 44. Nxg3 {[%emt 0:00:06]}
Qh7 {[%emt 0:01:17]} 45. Qxh7+ {[%emt 0:01:50]} Kxh7 {[%emt 0:00:03]} 46. Nf5 {
[%emt 0:00:32]} *

[Event "44th Chess Olympiad Open 2022"]
[Site "Chennai"]
[Date "2022.08.03"]
[Round "6.62"]
[White "Arnold Smith"]
[Black "Jaiswal, Rupesh"]
[Result "0-1"]
[WhiteElo "1931"]
[BlackElo "2083"]
[Annotator "NA RC"]
[PlyCount "102"]
[EventDate "2022.??.??"]
[TimeControl "60"]

1. d4 {[%emt 0:00:10]} Nf6 {[%emt 0:00:05]} 2. Nf3 {[%emt 0:00:23]} g6 {
[%emt 0:00:05]} 3. Bf4 {[%emt 0:01:02]} Bg7 {[%emt 0:00:07]} 4. h3 {[%emt 0:00:
00]} d6 {[%emt 0:00:35]} 5. e3 {[%emt 0:00:51]} Nbd7 {[%emt 0:00:04]} 6. Nbd2 {
[%emt 0:00:49]} O-O {[%emt 0:00:15]} 7. Be2 {[%emt 0:00:40]} c5 {[%emt 0:02:16]
} 8. c3 {[%emt 0:00:23]} Qb6 {[%emt 0:01:33]} 9. Qb3 {[%emt 0:00:40]} cxd4 {
[%emt 0:01:39]} 10. exd4 {[%emt 0:00:20]} Qxb3 {[%emt 0:00:10]} 11. axb3 {
[%emt 0:00:11]} Nd5 {[%emt 0:00:04]} 12. Bg5 {[%emt 0:02:36]} h6 {[%emt 0:00:
00]} 13. Bh4 {[%emt 0:00:27]} Nf4 {[%emt 0:01:23]} 14. Bf1 {[%emt 0:01:08]} Nb6
{[%emt 0:01:53]} 15. Bg3 {[%emt 0:00:35]} Nfd5 {[%emt 0:00:58]} 16. Bd3 {
[%emt 0:01:02]} f5 {[%emt 0:02:31]} 17. O-O {[%emt 0:00:56]} f4 {[%emt 0:01:21]
} 18. Bh2 {[%emt 0:00:04]} Bf5 {[%emt 0:00:06]} 19. Bxf5 {[%emt 0:02:32]} Rxf5
{[%emt 0:00:04]} 20. Rfe1 {[%emt 0:00:08]} Rf7 {[%emt 0:02:32]} 21. h4 {
[%emt 0:01:05]} a6 {[%emt 0:01:12]} 22. Re6 {[%emt 0:01:51]} Bf6 {[%emt 0:00:
00]} 23. Ne4 {[%emt 0:01:34]} Nd7 {[%emt 0:00:58]} 24. c4 {[%emt 0:02:25]} Nc7
{[%emt 0:01:24]} 25. Nxf6+ {[%emt 0:01:34]} Nxf6 {[%emt 0:00:03]} 26. Re2 {
[%emt 0:00:33]} Ng4 {[%emt 0:00:39]} 27. Rae1 {[%emt 0:01:10]} Kf8 {[%emt 0:00:
00]} 28. Re4 {[%emt 0:01:14]} Nxh2 {[%emt 0:01:07]} 29. Nxh2 {[%emt 0:00:25]}
e6 {[%emt 0:01:32]} 30. Ng4 {[%emt 0:00:47]} Kg7 {[%emt 0:00:56]} 31. f3 {
[%emt 0:03:01]} Rd8 {[%emt 0:04:04]} 32. R4e2 {[%emt 0:01:46]} Rf5 {[%emt 0:00:
00]} 33. Nf2 {[%emt 0:08:24]} a5 {[%emt 0:12:03]} 34. Nd3 {[%emt 0:07:53]} Kf6
{[%emt 0:02:50]} 35. b4 {[%emt 0:01:13]} axb4 {[%emt 0:01:52]} 36. Nxb4 {
[%emt 0:02:53]} Ra8 {[%emt 0:00:38]} 37. Nd3 {[%emt 0:02:16]} Ra4 {[%emt 0:00:
00]} 38. b4 {[%emt 0:03:03]} Ra3 {[%emt 0:00:49]} 39. c5 {[%emt 0:05:12]} Rxd3
{[%emt 0:07:37]} 40. cxd6 {[%emt 0:00:18]} Nb5 {[%emt 0:00:12]} 41. Rxe6+ {
[%emt 0:33:53]} Kg7 {[%emt 0:30:44]} 42. h5 {[%emt 0:15:59]} gxh5 {[%emt 0:00:
00]} 43. R1e5 {[%emt 0:05:28]} Nxd4 {[%emt 0:01:30]} 44. Re7+ {[%emt 0:02:52]}
Rf7 {[%emt 0:01:07]} 45. Rxf7+ {[%emt 0:03:22]} Kxf7 {[%emt 0:00:15]} 46. Re7+
{[%emt 0:00:02]} Kg6 {[%emt 0:00:58]} 47. Rxb7 {[%emt 0:01:21]} Nf5 {[%emt 0:
00:00]} 48. Kf2 {[%emt 0:01:52]} Ng3 {[%emt 0:01:05]} 49. d7 {[%emt 0:00:45]}
Rd1 {[%emt 0:00:26]} 50. Rb6+ {[%emt 0:08:54]} Kh7 {[%emt 0:00:45]} 51. d8=Q {
[%emt 0:00:25]} Rf1# {[%emt 0:00:44]} 0-1

[Event "44th Chess Olympiad Open 2022"]
[Site "Chennai"]
[Date "2022.08.03"]
[Round "6.62"]
[White "Bobby Ballah"]
[Black "Thing, Bibek"]
[Result "0-1"]
[WhiteElo "1916"]
[BlackElo "2260"]
[Annotator "TA"]
[PlyCount "65"]
[EventDate "2022.??.??"]
[TimeControl "60"]

{[%evp 9,65,-7,-3,0,0,3,82,-32,-33,-110,-106,-115,-112,-216,-220,-268,-184,
-257,-253,-271,-262,-286,-270,-348,-340,-442,-322,-336,-333,-452,-445,-473,
-462,-441,-470,-585,-581,-615,-573,-556,-556,-600,-635,-635,-634,-627,-617,
-741,-741,-783,-759,-759,-742,-1077,-1054,-1017,-749,-793]} 1. e4 {[%emt 0:00:
00]} c5 {[%emt 0:00:10]} 2. Nc3 {[%emt 0:00:13]} g6 {[%emt 0:02:33]} 3. f4 {
[%emt 0:00:56]} Bg7 {[%emt 0:00:21]} 4. Nf3 {[%emt 0:00:20]} a6 {[%emt 0:07:53]
} 5. Bc4 {[%emt 0:01:14]} b5 {[%emt 0:00:49]} 6. Bd5 {[%emt 0:01:42] B23:
Closed Sicilian: Lines without g3.} Ra7 {[%emt 0:01:10] [#] White must now
prevent ...e6.} 7. a3 $146 {[%emt 0:03:25]} ({Predecessor:} 7. d3 e6 8. Bb3 Ne7
9. O-O d5 10. a3 Bb7 11. Qe1 O-O 12. Qh4 c4 13. Ba2 {0-1 (38) De Vega
Fernandez,F (1784)-Jordan Martinez,D (2095) Caleta 2018}) 7... c4 {[%emt 0:00:
00] [#]} (7... d6 $11) 8. e5 {[%emt 0:01:03]} ({White has to play} 8. d3 $1 $16
) 8... e6 $15 {[%emt 0:00:20]} 9. Be4 {[%emt 0:00:57] White is on the road to
losing.} ({White should play} 9. Ne4 $1 $15) 9... d5 $17 {[%emt 0:00:15]} 10.
exd6 {[%emt 0:00:47]} f5 {[%emt 0:00:12]} 11. O-O {[%emt 0:12:58]} Qxd6 $19 {
[%emt 0:02:43]} (11... fxe4 12. Nxe4 Nf6 13. d3) 12. Qe2 {[%emt 0:03:32]} Nf6 {
[%emt 0:03:46]} 13. Qe3 {[%emt 0:05:13]} (13. d3 {was called for.}) 13... Rc7 {
[%emt 0:00:56]} 14. Ba8 {[%emt 0:04:52]} Ng4 {[%emt 0:00:24]} 15. Qe2 {[%emt 0:
00:00]} Ra7 {[%emt 0:00:42]} (15... Qxf4 16. Nd5 Qd6 17. Nxc7+ Qxc7 18. Kh1 $15
) 16. Bd5 {[%emt 0:03:41]} O-O {[%emt 0:04:10]} 17. h3 {[%emt 0:06:50]} Nf6 {
[%emt 0:07:49]} (17... exd5 $2 18. hxg4 d4 19. gxf5 dxc3 20. dxc3 $19) 18. Qe3
{[%emt 0:06:57]} Rff7 {[%emt 0:04:48]} 19. Ne5 {[%emt 0:02:03]} Nxd5 {[%emt 0:
00:00] Black is clearly winning.} ({Not} 19... exd5 $2 20. Nxf7 Rxf7 21. d4 $19
) 20. Nxf7 {[%emt 0:01:38]} Rxf7 {[%emt 0:00:22]} ({Worse is} 20... Nxe3 21.
Nxd6 Nxf1 22. Nxc8 $17) 21. Nxd5 {[%emt 0:00:45]} Qxd5 {[%emt 0:00:52]} ({
Wrong is} 21... exd5 $2 22. d4 $19) 22. c3 {[%emt 0:12:42] Prevents Bd4.} Bb7 {
[%emt 0:01:10][%csl Gb7][%cal Rd5g2]} 23. Qg3 {[%emt 0:02:20]} Nc6 {[%emt 0:00:
00][%cal Yb8c6,Yc6e5,Ye5c4]} 24. a4 {[%emt 0:09:54]} e5 {[%emt 0:00:00]} 25. d3
{[%emt 0:02:44]} cxd3 {[%emt 0:00:46]} 26. axb5 {[%emt 0:02:40]} Qxb5 {[%emt 0:
01:31]} 27. fxe5 {[%emt 0:01:32]} Nxe5 {[%emt 0:01:30]} 28. Rf2 {[%emt 0:05:51]
} Rd7 {[%emt 0:02:45]} 29. Be3 {[%emt 0:02:11]} Nc4 {[%emt 0:00:00] And now ...
Be4 would win.} 30. Qb8+ {[%emt 0:01:11]} Kf7 {[%emt 0:00:52]} 31. Bd4 {
[%emt 0:01:22]} d2 {[%emt 0:03:48]} 32. Re2 {[%emt 0:01:30] [#]} Be5 $1 {
[%emt 0:14:38]} 33. Rxe5 {[%emt 0:00:00] Weighted Error Value: White=0.59/
Black=0.24 (precise)} (33. Bxe5 d1=Q+) 0-1